bitfinex-derivatives/quotes_ETHF0:USTF0_20250317
["timestamp","ask_amount","ask_price","bid_price","bid_amount"]
[1742206871155,30.3894,1914.3,1914.2,1.0449]
[1742206871766,30.3894,1914.3,1914.2,2.4111]
[1742206875667,29.7077,1914.3,1914.2,2.4111]
[1742206875864,1.4313,1914.4,1914.3,1.04485]
[1742206876164,1.4313,1914.4,1914.3,5.69995]
[1742206876373,1.3884,1914.6,1914.5,1.04474]
[1742206876562,1.3884,1914.6,1914.5,4.25254]
[1742206876972,1.3884,1914.6,1914.5,5.69984]
[1742206878465,0.7016,1914.6,1914.5,5.69984]
[1742206879166,28.988,1914.8,1914.7,1.04463]
[1742206879474,0.6901,1915.0,1914.8,1.04457]
[1742206879475,1.3547,1914.9,1914.8,1.04457]
[1742206879666,2.0783,1914.9,1914.8,2.43087]
[1742206883173,28.984,1915.3,1914.9,2.61131]
[1742206883380,2.1229,1915.2,1915.1,4.25221]
[1742206883578,3.16727,1915.2,1915.0,1.04442]
[1742206883773,1.412,1915.1,1915.0,1.04442]
[1742206886377,1.412,1915.1,1915.0,2.46252]
[1742206886975,0.7109,1915.2,1915.1,1.04441]
[1742206887176,0.7109,1915.2,1915.1,5.67031]
[1742206887381,2.0899,1915.2,1915.1,5.67031]
[1742206891678,1.379,1915.2,1915.1,5.67031]
[1742206891877,0.6613,1915.5,1915.4,1.04425]
[1742206892077,38.0488,1915.8,1915.4,1.04425]
[1742206892078,1.4462,1915.7,1915.6,1.04414]
[1742206892580,1.4462,1915.7,1915.6,41.84414]
[1742206892896,2.49028,1915.7,1915.6,40.8]
[1742206893098,3.15158,1915.7,1915.6,40.8]
[1742206893289,2.1075,1915.7,1915.6,41.84414]
[1742206893596,3.15158,1915.7,1915.6,41.84414]
[1742206893796,3.15158,1915.7,1915.6,40.8]
[1742206893992,2.1075,1915.7,1915.6,41.84414]
[1742206897893,3.15158,1915.7,1915.6,41.84414]
[1742206898498,2.1075,1915.7,1915.6,41.84414]
[1742206899397,3.15158,1915.7,1915.6,41.84414]
[1742206899598,2.1075,1915.7,1915.6,41.84414]
[1742206900114,1.04422,1915.5,1915.4,1.04422]
[1742206900293,4.42322,1915.5,1915.4,1.04422]
[1742206900490,4.42322,1915.5,1915.4,41.84422]
[1742206900689,5.77262,1915.5,1915.4,41.84422]
[1742206900888,1.04425,1915.4,1915.3,0.00783842]
[1742206901097,3.11535,1915.4,1915.3,0.00783842]
[1742206901299,3.11535,1915.4,1915.3,40.80783842]
[1742206904899,3.11535,1915.4,1915.3,0.00783842]
[1742206905292,6.49435,1915.4,1915.3,1.05213842]
[1742206905602,6.49435,1915.4,1915.3,41.85213842]
[1742206905902,2.0711,1915.4,1915.3,41.85213842]
[1742206906101,5.4501,1915.4,1915.3,41.85213842]
[1742206906503,6.49435,1915.4,1915.3,41.85213842]
[1742206906698,5.4501,1915.4,1915.3,41.85213842]
[1742206907093,6.49435,1915.4,1915.3,1.05213842]
[1742206907298,5.4501,1915.4,1915.3,1.05213842]
[1742206907697,5.4501,1915.4,1915.3,41.85213842]
[1742206908399,5.4501,1915.4,1915.3,43.26333842]
[1742206909199,4.7284,1915.4,1915.3,43.26333842]
[1742206909401,4.7284,1915.4,1915.3,43.94583842]
[1742206912505,5.77265,1915.4,1915.3,43.94583842]
[1742206912907,4.7284,1915.4,1915.3,43.94583842]
[1742206913105,5.77265,1915.4,1915.3,0.00783842]
[1742206913503,5.77265,1915.4,1915.3,1.05213842]
[1742206914103,5.77265,1915.4,1915.3,2.37923842]
[1742206914409,5.77265,1915.4,1915.3,1.33493842]
[1742206915513,5.77265,1915.4,1915.3,0.00783842]
[1742206916113,5.77265,1915.4,1915.3,1.05213842]
[1742206916312,5.77265,1915.4,1915.3,0.00783842]
[1742206917213,8.98045,1915.4,1915.3,0.00783842]
[1742206917711,8.98045,1915.4,1915.3,2.46973842]
[1742206917914,8.98045,1915.4,1915.3,1.42543842]
[1742206918412,8.98045,1915.4,1915.3,2.46973842]
[1742206918711,8.98045,1915.4,1915.3,1.42543842]
[1742206920214,8.98045,1915.4,1915.3,2.46973842]
[1742206923422,8.98045,1915.4,1915.3,1.42543842]
[1742206924308,8.98045,1915.4,1915.3,0.00783842]
[1742206926322,8.98045,1915.4,1915.3,0.00321075]
[1742206927517,8.98045,1915.4,1915.3,1.39351075]
[1742206927716,7.9362,1915.4,1915.3,2.43781075]
[1742206927916,5.77265,1915.4,1915.3,2.43781075]
[1742206928215,5.77265,1915.4,1915.3,1.39351075]
[1742206928416,5.77265,1915.4,1915.3,2.43781075]
[1742206929323,5.77265,1915.4,1915.3,2.06631075]
[1742206929525,5.77265,1915.4,1915.3,1.39351075]
[1742206929727,1.04436,1915.2,1915.1,41.4728]
[1742206930025,4.42236,1915.2,1915.1,42.8631]
[1742206930625,5.85126,1915.2,1915.1,43.90749]
[1742206933225,4.8069,1915.2,1915.1,43.90749]
[1742206933424,3.378,1915.2,1915.1,43.90749]
[1742206933830,4.42236,1915.2,1915.1,43.90749]
[1742206935223,3.378,1915.2,1915.1,43.90749]
[1742206935430,5.87,1915.4,1915.3,1.0443]
[1742206935730,3.378,1915.4,1915.3,1.0443]
[1742206936231,3.378,1915.4,1915.3,2.3668]
[1742206936822,30.36162767,1915.5,1915.4,1.04425]
[1742206937024,28.96962767,1915.5,1915.4,2.39465]
[1742206937225,32.34762767,1915.5,1915.4,2.39465]
[1742206939129,32.34762767,1915.5,1915.4,2.39465]
[1742206939330,28.96962767,1915.5,1915.4,2.39465]
[1742206941240,0.00462767,1915.5,1915.4,2.39465]
[1742206946638,0.00462767,1915.5,1915.4,5.60245]
[1742206948041,3.378,1916.3,1915.5,2.61046]
[1742206948243,4.7119,1916.3,1916.2,1.04377]
[1742206948539,0.6814,1916.4,1916.3,1.04376]
[1742206948744,3.378,1916.4,1916.3,1.04376]
[1742206949237,4.4217,1916.4,1916.3,1.3233]
[1742206949448,4.8175,1916.4,1916.2,0.00783842]
[1742206949744,1.4395,1916.3,1916.2,1.05164842]
[1742206949935,1.4395,1916.3,1916.2,2.37494842]
[1742206950538,1.4395,1916.3,1916.2,1.33113842]
[1742206950736,1.4395,1916.3,1916.2,2.37494842]
[1742206951344,2.48326,1916.3,1916.2,0.00783842]
[1742206951848,2.48326,1916.3,1916.2,1.05164842]
[1742206952242,1.4395,1916.3,1916.2,1.05164842]
[1742206953044,5.69106,1916.3,1916.2,0.00783842]
[1742206953446,1.4395,1916.3,1916.2,1.05164842]
[1742206953748,2.48326,1916.3,1916.2,1.35283842]
[1742206954241,1.4395,1916.3,1916.2,2.39664842]
[1742206954448,4.8165,1916.3,1916.2,2.39664842]
[1742206955240,1.4395,1916.3,1916.2,2.39664842]
[1742206955448,4.8165,1916.3,1916.2,2.39664842]
[1742206957448,4.8165,1916.3,1916.2,43.19664842]
[1742206957851,5.86026,1916.3,1916.2,43.19664842]
[1742206958051,5.86026,1916.3,1916.2,2.39664842]
[1742206958251,4.8165,1916.3,1916.2,2.39664842]
[1742206958652,4.8165,1916.3,1916.2,1.05164842]
[1742206958853,5.86026,1916.3,1916.2,1.05164842]
[1742206959352,4.8165,1916.3,1916.2,1.05164842]
[1742206959556,1.4395,1916.3,1916.2,1.05164842]
[1742206959741,3.2078,1916.4,1916.2,1.05164842]
[1742206959742,1.3776,1916.4,1916.3,1.04376]
[1742206959946,1.3776,1916.4,1916.3,3.03706]
[1742206959947,4.7606,1916.4,1916.3,3.03706]
[1742206960854,3.383,1916.4,1916.3,3.03706]
[1742206961845,4.818,1916.4,1916.2,3.21563842]
[1742206962051,1.435,1916.3,1916.2,4.25944842]
[1742206962856,2.47876,1916.3,1916.2,3.21563842]
[1742206963247,2.47876,1916.3,1916.2,0.00783842]
[1742206963557,2.47876,1916.3,1916.2,1.05164842]
[1742206964851,2.47876,1916.3,1916.2,0.00783842]
[1742206966956,2.47876,1916.3,1916.2,1.05164842]
[1742206967160,1.435,1916.3,1916.2,1.05164842]
[1742206967349,2.47876,1916.3,1916.2,1.05164842]
[1742206967954,2.47876,1916.3,1916.2,0.00783842]
[1742206968759,2.47876,1916.3,1916.2,1.05164842]
[1742206968958,2.47876,1916.3,1916.2,2.47364842]
[1742206969157,2.47876,1916.3,1916.2,1.42983842]
[1742206969457,2.47876,1916.3,1916.2,1.05164842]
[1742206970055,2.47876,1916.3,1916.2,0.00783842]
[1742206973162,2.47876,1916.3,1916.2,1.33573842]
[1742206974062,2.47876,1916.3,1916.2,2.37954842]
[1742206974352,1.435,1916.3,1916.2,2.37954842]
[1742206975646,2.47876,1916.3,1916.2,2.37954842]
[1742206976049,2.47876,1916.3,1916.2,1.33573842]
[1742206976254,1.435,1916.3,1916.2,2.37954842]
[1742206976956,5.87321075,1916.5,1916.4,1.0437]
[1742206977766,5.87321075,1916.5,1916.4,2.4917]
[1742206979864,5.87321075,1916.5,1916.4,5.6995]
[1742206981858,5.87321075,1916.5,1916.4,2.4917]
[1742206982460,5.87321075,1916.5,1916.4,5.6995]
[1742206982766,0.00321075,1916.5,1916.4,2.4917]
[1742206983165,2.00721075,1916.5,1916.4,2.4917]
[1742206983868,1.35281075,1916.5,1916.4,2.4917]
[1742206986359,0.00321075,1916.5,1916.4,2.4917]
[1742206986554,3.37921075,1916.5,1916.4,2.4917]
[1742206989169,4.78751075,1916.5,1916.4,2.4917]
[1742206992373,0.00321075,1916.5,1916.4,2.4917]
[1742206993967,3.02917399,1917.5,1916.4,2.4917]
[1742206993968,3.2078,1917.8,1916.4,7.324]
[1742206994199,3.2078,1918.4,1917.7,3.2078]
[1742206994471,35.4829,1919.1,1918.3,3.2078]
[1742206994472,6.27750212,1918.8,1918.3,3.2078]
[1742206994775,5.87,1918.8,1918.6,3.2078]
[1742206995071,3.20780004,1918.7,1918.6,4.25026]
[1742206995275,4.1679,1919.4,1918.7,2.60613]
[1742206995483,4.1679,1919.4,1919.1,1.04221]
[1742206995484,3.20780004,1919.3,1919.1,1.04221]
[1742206995669,4.55980004,1919.3,1919.1,1.04219]
[1742206995868,4.55980004,1919.3,1918.9,1.04231]
[1742206995869,4.25002004,1919.2,1918.9,1.04231]
[1742206996176,4.25002004,1919.2,1919.1,1.04223]
[1742206996177,1.59961004,1919.2,1919.1,1.04223]
[1742206996362,32.64067938,1919.5,1919.2,1.04213]
[1742206996567,1.59961004,1919.4,1919.1,41.84221]
[1742206996767,6.22471004,1919.4,1919.2,3.2078]
[1742206996963,32.64067938,1919.5,1919.2,3.2078]
[1742206997181,1.59961004,1919.4,1919.1,40.8]
[1742206997381,1.04218,1919.2,1919.1,40.8]
[1742206997680,1.04223,1919.1,1919.0,3.2078]
[1742206997978,2.41893,1919.1,1919.0,3.2078]
[1742206998276,1.04237,1918.9,1918.8,3.2078]
[1742206998464,4.62734,1918.9,1918.8,3.2078]
[1742206998670,4.62734,1918.9,1918.5,0.00781779]
[1742206998671,16.16053004,1918.9,1918.5,0.00781779]
[1742206998872,3.2078,1918.6,1917.9,3.8864]
[1742206999179,3.2078,1918.2,1918.1,1.04275]
[1742206999403,3.2078,1918.2,1917.9,0.6786]
[1742206999573,1.04289,1917.9,1917.8,1.04289]
[1742206999771,7.83966,1918.0,1917.8,1.04289]
[1742206999972,2.64254004,1917.9,1917.7,0.00781779]
[1742207000168,6.8058,1917.8,1917.7,1.05079779]
[1742207000473,8.40541004,1917.8,1917.7,0.00781779]
[1742207000779,9.44835004,1917.8,1917.7,0.00781779]
[1742207001372,8.40541004,1917.8,1917.7,0.00781779]
[1742207001687,3.598,1917.8,1917.7,1.05080779]
[1742207001881,3.598,1917.8,1917.7,0.00781779]
[1742207002075,4.64094,1917.8,1917.7,0.00781779]
[1742207002472,6.24055004,1917.8,1917.7,0.00781779]
[1742207002677,9.44835004,1917.8,1917.7,0.00781779]
[1742207003571,1.04309,1917.6,1917.4,1.04316]
[1742207003777,1.0431,1917.5,1917.4,1.04316]
[1742207003973,1.59961004,1917.5,1917.1,10.08457]
[1742207004180,2.64272004,1917.5,1917.3,1.04318]
[1742207004373,1.59961004,1917.5,1917.1,10.08457]
[1742207004677,1.59961004,1917.5,1917.3,1.04316]
[1742207004879,2.64272004,1917.5,1917.3,1.04316]
[1742207005277,2.64272004,1917.5,1917.4,1.04316]
[1742207005278,2.97401004,1917.5,1917.4,1.04316]
[1742207005680,1.59961004,1917.5,1917.4,1.04316]
[1742207005881,1.59961004,1917.5,1917.2,2.60814]
[1742207005882,1.59961004,1917.5,1917.3,1.04317]
[1742207006276,1.59961004,1917.5,1917.4,1.04316]
[1742207006778,8.1722,1917.6,1917.5,1.0431]
[1742207006982,9.77181004,1917.6,1917.5,1.0431]
[1742207007978,4.80741004,1917.6,1917.5,1.0431]
[1742207008178,5.85046004,1917.6,1917.4,1.0431]
[1742207008378,5.85046004,1917.6,1917.5,1.3227]
[1742207008379,4.25085,1917.6,1917.5,1.3227]
[1742207008578,7.23726004,1917.6,1917.5,1.3227]
[1742207008878,7.23726004,1917.6,1917.4,1.0431]
[1742207009081,7.23726004,1917.6,1917.2,3.2078]
[1742207009082,2.64275004,1917.5,1917.3,2.3659]
[1742207009280,4.02955004,1917.5,1917.3,2.3659]
[1742207009487,1.59961004,1917.4,1917.3,2.36587]
[1742207009875,3.04511004,1917.4,1917.3,2.36587]
[1742207010182,6.25291004,1917.4,1917.2,1.04323]
[1742207010380,2.64282004,1917.3,1917.1,1.37151779]
[1742207010582,2.48877,1917.2,1917.1,1.37151779]
[1742207010784,4.08838004,1917.2,1917.1,0.00781779]
[1742207012084,7.29618004,1917.2,1917.1,0.00781779]
[1742207016085,1.04343,1916.9,1916.8,40.8]
[1742207016281,7.81523,1916.9,1916.8,40.8]
[1742207016484,9.41484004,1916.9,1916.8,40.8]
[1742207016995,10.10854004,1916.9,1916.8,40.8]
[1742207017179,10.10854004,1916.9,1916.8,41.84348]
[1742207017489,8.37141004,1916.9,1916.8,41.84348]
[1742207017885,8.37141004,1916.9,1916.8,43.19098]
[1742207018293,9.78911004,1916.9,1916.8,43.19098]
[1742207018789,9.78511004,1916.9,1916.8,43.19098]
[1742207019380,9.0778,1917.2,1917.1,1.04332]
[1742207019690,1.59961004,1917.1,1916.9,2.41802]
[1742207019884,7.66197004,1917.1,1916.9,2.41801]
[1742207020082,1.59961004,1917.0,1916.9,2.41803]
[1742207020296,3.03661004,1917.0,1916.9,2.41803]
[1742207020585,3.582,1917.1,1916.9,2.41803]
[1742207020586,3.582,1917.1,1917.0,1.04338]
[1742207020887,4.62532,1917.1,1916.8,40.8]
[1742207021091,6.24441004,1917.0,1916.9,1.04343]
[1742207021279,6.24441004,1917.0,1916.9,2.41803]
[1742207022789,7.28779004,1917.0,1916.9,2.41803]
[1742207023090,7.28779004,1917.0,1916.9,1.3746]
[1742207023593,6.24441004,1917.0,1916.9,2.41803]
[1742207025090,7.28779004,1917.0,1916.9,1.04343]
[1742207025490,6.24441004,1917.0,1916.9,1.04343]
[1742207025997,7.28779004,1917.0,1916.9,2.47543]
[1742207026185,6.24441004,1917.0,1916.9,2.47543]
[1742207029489,5.87,1917.2,1917.1,1.04332]
[1742207029886,7.46961004,1917.2,1917.1,1.04332]
[1742207030096,3.2078,1917.5,1917.2,1.04327]
[1742207030290,1.59961004,1917.5,1917.4,1.04316]
[1742207030896,1.59961004,1917.5,1917.3,2.37547]
[1742207031099,1.59961004,1917.4,1917.3,1.3323]
[1742207031297,1.59961004,1917.4,1917.3,2.37551]
[1742207033699,1.59961004,1917.4,1917.3,1.3323]
[1742207033896,2.95121004,1917.4,1917.3,2.37551]
[1742207034199,6.51821004,1917.4,1917.3,2.37551]
[1742207034899,7.56137004,1917.4,1917.3,1.3323]
[1742207035195,6.51821004,1917.4,1917.3,1.04321]
[1742207036397,6.51821004,1917.4,1916.8,40.8]
[1742207036597,4.25118,1917.0,1916.9,1.3981]
[1742207036897,4.25118,1917.0,1916.7,0.00781779]
[1742207036898,6.7688,1917.0,1916.7,0.00781779]
[1742207037205,1.04348,1916.8,1916.7,1.05132779]
[1742207037505,3.581,1916.8,1916.7,1.05132779]
[1742207037799,6.62191004,1916.8,1916.7,41.85132779]
[1742207038398,7.66539004,1916.8,1916.7,41.85132779]
[1742207039000,10.87319004,1916.8,1916.7,40.80781779]
[1742207039601,7.79e-06,1916.9,1916.7,40.80781779]
[1742207039797,4.6324,1917.5,1917.4,1.04316]
[1742207040201,3.02421004,1917.5,1917.4,1.04316]
[1742207040496,3.02421004,1917.5,1917.4,41.84316]
[1742207041702,7.27511004,1917.5,1917.4,40.8]
[1742207041907,6.23201004,1917.5,1917.4,41.84316]
[1742207042301,7.27511004,1917.5,1917.4,40.8]
[1742207042507,1.04316,1917.4,1917.3,1.04317]
[1742207042806,6.61621004,1917.4,1917.3,1.04317]
[1742207042999,6.61621004,1917.4,1917.3,41.84317]
[1742207043509,7.65937004,1917.4,1917.3,41.84317]
[1742207043915,7.65937004,1917.4,1917.3,40.8]
[1742207044207,1.04327,1917.2,1917.1,1.04327]
[1742207044411,1.04335,1917.1,1917.0,1.04333]
[1742207044601,4.03036004,1917.1,1917.0,41.84333]
[1742207045004,4.03036004,1917.1,1917.0,40.8]
[1742207045213,4.03036004,1917.1,1917.0,1.04338]
[1742207046810,1.0434,1917.0,1916.9,1.04338]
[1742207047010,10.80911004,1917.0,1916.9,1.04338]
[1742207047211,9.76571004,1917.0,1916.9,1.04338]
[1742207047805,9.76571004,1917.0,1916.9,41.84338]
[1742207048909,1.59961004,1917.0,1916.9,41.84338]
[1742207049212,9.0778,1917.2,1917.1,1.04332]
[1742207049213,7.3108,1917.2,1917.1,1.04332]
[1742207049404,3.582,1917.2,1917.1,1.04332]
[1742207049608,5.18161004,1917.2,1917.1,1.04332]
[1742207049805,6.62241004,1917.2,1917.1,41.84332]
[1742207050208,6.62241004,1917.2,1917.1,40.8]
[1742207050209,10.87348004,1917.2,1917.1,40.8]
[1742207050407,1.04332,1917.1,1917.0,2.37056]
[1742207050606,3.69341004,1917.1,1917.0,2.37056]
[1742207051007,3.69341004,1917.1,1917.0,43.17056]
[1742207051208,3.69341004,1917.1,1917.0,42.1272]
[1742207051209,4.73673004,1917.1,1917.0,42.1272]
[1742207051518,4.73673004,1917.1,1917.0,41.84338]
[1742207051709,1.04348,1916.9,1916.8,1.04346]
[1742207051908,4.63348,1916.9,1916.8,1.04346]
[1742207052109,6.23309004,1916.9,1916.8,41.84346]
[1742207052412,7.67579004,1916.9,1916.8,40.8]
[1742207052914,7.67579004,1916.9,1916.8,41.84348]
[1742207053415,6.63231004,1916.9,1916.8,41.84348]
[1742207053809,6.63231004,1916.9,1916.8,43.27578]
[1742207054009,7.67574004,1916.9,1916.8,43.27578]
[1742207054813,6.63231004,1916.9,1916.8,43.27578]
[1742207055113,5.18961004,1916.9,1916.8,43.27578]
[1742207055415,3.59,1916.9,1916.8,43.99138]
[1742207058423,5.64159,1917.2,1917.1,1.04332]
[1742207058619,9.21959,1917.2,1917.1,1.04332]
[1742207058918,9.77591004,1917.2,1917.1,1.04332]
[1742207059917,10.81918004,1917.2,1917.0,2.47874]
[1742207060120,1.59961004,1917.1,1917.0,2.47874]
[1742207060316,2.96901004,1917.1,1917.0,2.47874]
[1742207060522,5.17161004,1917.1,1917.0,2.47874]
[1742207060723,6.21493004,1917.1,1917.0,1.4354]
[1742207060926,5.17161004,1917.1,1917.0,1.4354]
[1742207061122,6.21493004,1917.1,1917.0,1.4354]
[1742207061325,6.21493004,1917.1,1917.0,2.47878]
[1742207061525,6.21493004,1917.1,1917.0,1.4354]
[1742207061824,6.21493004,1917.1,1916.8,41.5156]
[1742207061825,9.42277004,1917.1,1916.8,40.8]
[1742207062024,3.04601004,1917.0,1916.9,2.40793]
[1742207063820,1.59961004,1917.0,1916.9,2.40793]
[1742207064024,2.93971004,1917.0,1916.9,2.40793]
[1742207064219,1.59961004,1917.0,1916.9,2.40793]
[1742207064420,5.16761004,1917.0,1916.9,2.40793]
[1742207065429,6.21099004,1917.0,1916.9,2.40793]
[1742207065634,1.04343,1916.9,1916.8,40.8]
[1742207065927,1.04348,1916.8,1916.7,2.46173779]
[1742207066116,5.16861004,1916.8,1916.7,2.46173779]
[1742207066323,6.50871004,1916.8,1916.7,2.46173779]
[1742207066521,6.50871004,1916.8,1916.7,43.26173779]
[1742207070237,7.55219004,1916.8,1916.7,43.26173779]
[1742207070735,7.54119004,1916.8,1916.7,43.26173779]
[1742207070935,6.49771004,1916.8,1916.7,43.26173779]
[1742207073740,7.54119004,1916.8,1916.7,43.26173779]
[1742207074138,6.49771004,1916.8,1916.7,43.26173779]
[1742207075839,7.54119004,1916.8,1916.7,40.80781779]
[1742207076046,7.54119004,1916.8,1916.7,0.00781779]
[1742207076047,13.41119004,1916.8,1916.7,0.00781779]
[1742207078734,1.04354,1916.7,1916.6,40.8]
[1742207079035,7.28785004,1916.7,1916.6,40.8]
[1742207079440,1.04365,1916.5,1916.4,1.4323]
[1742207080445,8.22446783,1916.6,1916.5,41.84365]
[1742207081547,1.0437,1916.4,1916.3,0.00781779]
[1742207081741,7.7925,1916.4,1916.3,0.00781779]
[1742207081939,9.39211004,1916.4,1916.3,0.00781779]
[1742207082249,10.81201004,1916.4,1916.3,0.00781779]
[1742207082746,10.81201004,1916.4,1916.3,40.80781779]
[1742207083144,2.6094,1916.3,1915.6,1.7636]
[1742207083334,2.6094,1916.3,1915.7,1.04405]
[1742207083335,1.04407,1915.8,1915.7,1.04405]
[1742207083535,1.04407,1915.8,1915.7,40.8]
[1742207083536,4.58903,1915.8,1915.7,40.8]
[1742207083841,9.00102225,1915.8,1915.7,40.8]
[1742207084257,9.00102225,1915.8,1915.7,41.84408]
[1742207085347,9.00102225,1915.8,1915.7,40.8]
[1742207086039,37.94702225,1915.8,1915.7,40.8]
[1742207088249,1.04408,1915.7,1915.6,0.00781779]
[1742207088549,7.27097225,1915.7,1915.6,0.00781779]
[1742207088848,7.27097225,1915.7,1915.6,40.80781779]
[1742207089841,10.80597225,1915.7,1915.6,41.85195779]
[1742207090047,10.80597225,1915.7,1915.6,40.80781779]
[1742207090545,10.80597225,1915.7,1915.6,0.00781779]
[1742207091549,13.30597225,1915.7,1915.6,0.00781779]
[1742207092349,10.80597225,1915.7,1915.6,0.00781779]
[1742207092742,10.80697225,1915.7,1915.6,0.00781779]
[1742207093054,10.80697225,1915.7,1915.6,40.80781779]
[1742207096357,10.80697225,1915.7,1915.6,0.00781779]
[1742207096758,10.80697225,1915.7,1915.6,1.05195779]
[1742207097055,8.32959225,1915.7,1915.6,42.53335779]
[1742207097257,9.37367225,1915.7,1915.6,42.20961779]
[1742207097645,10.81537225,1915.7,1915.6,43.65851779]
[1742207099264,10.81537225,1915.7,1915.6,2.85851779]
[1742207103158,10.81537225,1915.7,1915.6,1.45671779]
[1742207103356,10.81537225,1915.7,1915.6,0.00781779]
[1742207103560,13.31537225,1915.7,1915.6,0.00781779]
[1742207104459,10.81537225,1915.7,1915.6,0.00781779]
[1742207104659,16.68537225,1915.7,1915.6,0.00781779]
[1742207106052,19.18537225,1915.7,1915.6,0.00781779]
[1742207108162,16.68537225,1915.7,1915.6,0.00781779]
[1742207113375,19.18537225,1915.7,1915.6,7.79e-06]
[1742207113674,1.04465,1914.7,1914.6,1.04465]
[1742207113862,4.54965,1914.7,1914.6,41.84465]
[1742207114060,6.14143446,1914.7,1914.6,41.84465]
[1742207114273,9.34923446,1914.7,1914.6,41.84465]
[1742207115068,9.34923446,1914.7,1914.6,43.89135]
[1742207115467,5.09678446,1914.7,1914.6,43.89135]
[1742207116171,3.505,1914.7,1914.6,43.89135]
[1742207116669,3.505,1914.7,1914.6,46.39135]
[1742207116864,0.00781779,1914.8,1914.7,1.04463]
[1742207117064,0.00781779,1914.8,1914.7,5.67363]
[1742207120174,0.00781779,1914.8,1914.7,2.46583]
[1742207120378,1.05238779,1914.8,1914.7,2.46583]
[1742207120675,0.00781779,1914.8,1914.7,2.46583]
[1742207121972,1.59960225,1914.8,1914.7,2.46583]
[1742207122673,0.00781779,1914.8,1914.7,2.46583]
[1742207122868,0.00781779,1914.8,1914.7,4.96583]
[1742207123076,28.963,1914.9,1914.8,1.04457]
[1742207123373,28.963,1914.9,1914.8,2.48357]
[1742207123676,3.498,1915.0,1914.9,1.04452]
[1742207123871,3.498,1915.0,1914.9,2.48352]
[1742207124774,0.00781779,1915.1,1915.0,1.04446]
[1742207124968,0.00781779,1915.1,1915.0,3.03996]
[1742207125776,2.64401225,1915.1,1915.0,3.03996]
[1742207125977,2.64401225,1915.1,1915.0,1.9955]
[1742207126166,4.01971225,1915.1,1915.0,1.9955]
[1742207126678,4.01971225,1915.1,1915.0,1.3202]
[1742207127380,4.01971225,1915.1,1915.0,2.36466]
[1742207127675,4.01971225,1915.1,1915.0,1.3202]
[1742207128377,2.97530225,1915.1,1915.0,2.36466]
[1742207128579,1.59960225,1915.1,1915.0,2.36466]
[1742207129373,2.64401225,1915.1,1915.0,2.36466]
[1742207130777,1.59960225,1915.1,1915.0,2.36466]
[1742207130977,1.59960225,1915.1,1914.8,0.6586]
[1742207131178,5.08878446,1915.0,1914.9,2.35279]
[1742207131484,3.497,1915.0,1914.9,2.35279]
[1742207132181,6.13324446,1915.0,1914.9,2.35279]
[1742207132381,5.08878446,1915.0,1914.9,2.35279]
[1742207133086,6.13324446,1915.0,1914.9,2.35279]
[1742207133382,10.75434446,1915.0,1914.9,1.3083]
[1742207133584,10.75434446,1915.0,1914.9,2.35282]
[1742207133980,10.75434446,1915.0,1914.9,1.3083]
[1742207134489,11.43434446,1915.0,1914.9,1.3083]
[1742207135374,11.43434446,1915.0,1914.9,2.35282]
[1742207136390,11.43434446,1915.0,1914.9,1.3083]
[1742207137093,11.43434446,1915.0,1914.9,2.35282]
[1742207141594,1.04455,1914.9,1914.8,1.04453]
[1742207141795,4.05683446,1914.9,1914.8,1.04453]
[1742207142897,4.05680446,1914.9,1914.8,1.04453]
[1742207143098,3.01228446,1914.9,1914.8,1.04453]
[1742207143798,4.05680446,1914.9,1914.8,1.04453]
[1742207145800,3.01228446,1914.9,1914.8,1.04453]
[1742207146602,4.05680446,1914.9,1914.8,1.04453]
[1742207147093,1.04457,1914.8,1914.7,1.4305]
[1742207147294,9.62048446,1914.8,1914.5,1.05250779]
[1742207147590,1.04468,1914.6,1914.5,0.00781779]
[1742207147791,6.11446446,1914.6,1914.5,40.80781779]
[1742207147997,8.13916446,1914.6,1914.5,40.80781779]
[1742207148303,11.34696446,1914.6,1914.5,40.80781779]
[1742207148598,11.34696446,1914.6,1914.5,41.85255779]
[1742207149391,11.34696446,1914.6,1914.5,0.00781779]
[1742207149594,11.34696446,1914.6,1914.5,1.05255779]
[1742207149798,11.34696446,1914.6,1914.5,1.39051779]
[1742207150203,11.34696446,1914.6,1914.5,0.00781779]
[1742207161511,10.30228446,1914.6,1914.5,0.00781779]
[1742207161709,10.66716446,1914.6,1914.5,1.40781779]
[1742207162207,10.66716446,1914.6,1914.5,2.78931779]
[1742207162605,10.66716446,1914.6,1914.5,2.11111779]
[1742207162800,10.66716446,1914.6,1914.5,1.38931779]
[1742207163716,11.37386446,1914.6,1914.5,0.00781779]
[1742207172624,4.79958446,1914.6,1914.5,1.05255779]
[1742207172924,8.24658446,1914.6,1914.5,1.75005779]
[1742207173227,9.60188446,1914.6,1914.5,3.15815779]
[1742207173422,6.15488446,1914.6,1914.5,3.15815779]
[1742207173726,9.60488446,1914.6,1914.5,3.15815779]
[1742207174227,9.60488446,1914.6,1914.5,2.11341779]
[1742207174228,10.64956446,1914.6,1914.5,2.11341779]
[1742207174727,9.29426446,1914.6,1914.5,3.15815779]
[1742207177322,9.29426446,1914.6,1914.5,2.11341779]
[1742207178525,10.68006446,1914.6,1914.5,3.15815779]
[1742207180022,9.29426446,1914.6,1914.5,3.15815779]
[1742207182133,10.63686446,1914.6,1914.5,3.15815779]
[1742207182731,9.29426446,1914.6,1914.5,3.15815779]
[1742207183632,10.66026446,1914.6,1914.5,3.15815779]
[1742207183829,8.24958446,1914.6,1914.5,3.15815779]
[1742207184229,9.29426446,1914.6,1914.5,3.15815779]
[1742207184631,4.79958446,1914.6,1914.5,3.15815779]
[1742207184827,6.6398,1914.6,1914.5,3.15815779]
[1742207187733,7.68448,1914.6,1914.5,3.15815779]
[1742207187933,9.07328,1914.6,1914.5,3.15815779]
[1742207189040,8.0286,1914.6,1914.5,3.15815779]
[1742207189337,6.6398,1914.6,1914.5,3.15815779]
[1742207193454,28.976,1914.7,1914.6,1.04468]
[1742207193645,30.56778446,1914.7,1914.6,2.40458]
[1742207194534,33.98978446,1914.7,1914.6,2.40458]
[1742207194957,28.976,1914.7,1914.6,2.40458]